bitfinex/quotes_ETHUSD_20230831
["timestamp","ask_amount","ask_price","bid_price","bid_amount"]
[1693493097686,5.86888,1703.9,1703.8,0.81611958]
[1693493097907,6.34888,1703.9,1703.8,0.81611958]
[1693493098214,12.21776,1703.9,1703.8,1.28539272]
[1693493098686,12.21776,1703.9,1703.8,0.46927314]
[1693493098687,19.52764,1703.9,1703.8,0.46927314]
[1693493098916,21.75091332,1703.9,1703.8,0.46927314]
[1693493101391,21.75091332,1703.9,1703.8,0.00499412]
[1693493101803,21.75091332,1703.9,1703.8,0.46953609]
[1693493102125,21.75091332,1703.9,1703.8,0.00499412]
[1693493102426,20.30991332,1703.9,1703.8,0.00499412]
[1693493102989,20.30991332,1703.9,1703.6,0.81611958]
[1693493103189,2.51099133,1703.8,1703.6,0.81611958]
[1693493103444,5.86957,1703.7,1703.6,0.81611958]
[1693493103998,5.86957,1703.7,1703.6,0.82112842]
[1693493106107,6.34957,1703.7,1703.6,0.82112842]
[1693493106455,12.21914,1703.7,1703.6,0.82112842]
[1693493106745,20.10066913,1703.7,1703.6,0.82112842]
[1693493112296,20.10066913,1703.7,1703.6,0.00500884]
[1693493112297,21.54166913,1703.7,1703.6,0.00500884]
[1693493113164,21.54166913,1703.7,1703.4,0.81611958]
[1693493113317,21.54166913,1703.7,1703.6,0.52900435]
[1693493113516,21.54166913,1703.7,1703.4,0.81611958]
[1693493113759,2.63416691,1703.6,1703.4,0.81611958]
[1693493113901,11.74052,1703.5,1703.4,0.81611958]
[1693493114767,18.09078,1703.5,1703.4,0.81611958]
[1693493117010,18.09078,1703.5,1703.4,0.82114315]
[1693493125358,18.09078,1703.5,1703.4,0.00502357]
[1693493125519,20.44852469,1703.5,1703.4,0.00502357]
[1693493126060,20.44852469,1703.5,1703.2,0.81611958]
[1693493126362,5.87095,1703.3,1703.2,0.81611958]
[1693493126562,5.25868445,1703.3,1703.2,1.83656217]
[1693493126939,11.74153,1703.4,1703.2,1.83656217]
[1693493127128,11.74153,1703.4,1703.2,0.82115788]
[1693493127842,11.74153,1703.4,1703.3,1.02043738]
[1693493128070,14.26648647,1703.4,1703.3,1.02043738]
[1693493128241,14.26648647,1703.4,1703.3,1.55045502]
[1693493129161,14.26648647,1703.4,1703.3,1.55548595]
[1693493130226,20.13737647,1703.4,1703.3,1.55548595]
[1693493130446,20.13737647,1703.4,1703.3,1.55549811]
[1693493130651,20.13737647,1703.4,1703.3,0.53504857]
[1693493130851,20.13737647,1703.4,1703.3,1.55550237]
[1693493131666,21.57837647,1703.4,1703.3,1.55550237]
[1693493132453,24.50611977,1703.4,1703.3,1.55550237]
[1693493132654,24.50611977,1703.4,1703.3,0.53504857]
[1693493133040,24.50611977,1703.4,1703.3,0.53001764]
[1693493133672,24.50611977,1703.4,1703.0,1.43124096]
[1693493133980,11.7426,1703.2,1703.1,1.02056169]
[1693493134134,12.2226,1703.2,1703.1,1.02706862]
[1693493135859,18.0939,1703.2,1703.1,1.64219]
[1693493140381,21.0216433,1703.2,1703.1,1.64219]
[1693493142948,21.0216433,1703.2,1703.1,1.02706862]
[1693493143149,24.10007183,1703.2,1703.1,1.02706862]
[1693493143458,24.10007183,1703.2,1703.1,1.69050827]
[1693493147756,17.6139,1703.2,1703.1,1.69050827]
[1693493149180,18.0939,1703.2,1703.1,1.69050827]
[1693493152083,18.0939,1703.2,1703.1,0.66994658]
[1693493152460,18.0939,1703.2,1703.1,1.69046654]
[1693493152895,18.0939,1703.2,1703.1,0.66994658]
[1693493156300,6.3513,1703.2,1703.1,1.0658532]
[1693493156507,5.8713,1703.2,1703.1,1.0658532]
[1693493157570,5.8713,1703.2,1703.1,2.0863585]
[1693493157766,5.8713,1703.2,1703.1,1.0658532]
[1693493158507,5.8713,1703.2,1703.1,2.08635395]
[1693493160004,11.74223,1703.3,1703.2,0.81611958]
[1693493160403,5.87109,1703.3,1703.2,0.81611958]
[1693493160708,5.87109,1703.3,1703.2,1.47991384]
[1693493161070,5.87109,1703.3,1703.2,1.48644065]
[1693493164123,5.87109,1703.3,1703.2,1.47991384]
[1693493168166,5.87109,1703.3,1703.2,1.48643914]
[1693493169365,1.70246959,1703.7,1703.4,0.81611958]
[1693493169632,5.87003,1703.6,1703.4,2.25711958]
[1693493170297,5.87003,1703.6,1703.5,0.00650292]
[1693493170613,11.73951,1703.7,1703.6,0.81611958]
[1693493170908,11.7388,1703.8,1703.6,0.81611958]
[1693493171113,11.7388,1703.8,1703.6,1.62949383]
[1693493172125,11.7388,1703.8,1703.7,0.00648053]
[1693493173206,11.7388,1703.8,1703.7,0.66821685]
[1693493186598,5.86934,1703.8,1703.7,0.66821685]
[1693493186766,5.86923,1703.8,1703.7,6.53778685]
[1693493186970,5.86923,1703.8,1703.7,0.66821685]
[1693493187367,5.86901,1703.9,1703.8,0.81611958]
[1693493187605,11.73806,1703.9,1703.8,0.81611958]
[1693493188167,11.73806,1703.9,1703.8,1.48432397]
[1693493189289,5.86901,1703.9,1703.8,1.48432397]
[1693493191505,11.73806,1703.9,1703.8,1.48432397]
[1693493192298,13.693573,1703.9,1703.8,1.48432397]
[1693493195598,11.73806,1703.9,1703.8,1.48432397]
[1693493196297,5.86901,1703.9,1703.8,1.48432397]
[1693493196518,13.68578,1704.0,1703.8,7.35355397]
[1693493205631,11.73748,1704.0,1703.8,7.35355397]
[1693493208730,11.73748,1704.0,1703.8,9.26278937]
[1693493209515,5.86872,1704.0,1703.8,15.13201937]
[1693493210149,5.86872,1704.0,1703.8,9.26278937]
[1693493214264,11.73745,1704.0,1703.8,7.35355397]
[1693493221871,5.96936,1704.1,1703.8,13.22278397]
[1693493222073,5.9692,1704.1,1704.0,0.81611958]
[1693493222594,5.9692,1704.1,1704.0,1.4768022]
[1693493223086,5.9692,1704.1,1704.0,1.483253]
[1693493227358,0.101,1704.1,1704.0,7.351793]
[1693493227571,5.9692,1704.1,1704.0,7.351793]
[1693493229279,0.101,1704.1,1704.0,7.351793]
[1693493230783,5.9692,1704.1,1704.0,8.6738343]
[1693493232067,0.101,1704.1,1704.0,8.6738343]
[1693493233503,0.101,1704.1,1704.0,20.4109143]
[1693493240293,0.101,1704.1,1704.0,21.8519143]
[1693493247827,0.101,1704.1,1704.0,24.7796576]
[1693493248128,0.101,1704.1,1704.0,27.24054874]
[1693493248326,0.101,1704.1,1704.0,45.29008874]
[1693493248528,0.101,1704.1,1704.0,47.43583718]
[1693493249231,0.101,1704.1,1704.0,45.3789638]
[1693493249523,0.101,1704.1,1704.0,45.99483718]
[1693493254337,0.101,1704.1,1704.0,46.45438265]
[1693493256839,0.05333144,1704.1,1704.0,46.45438265]
[1693493258935,0.05333144,1704.1,1704.0,47.37819272]
[1693493259233,0.05333144,1704.1,1704.0,42.0650574]
[1693493259439,0.05333144,1704.1,1704.0,31.40484265]
[1693493259622,0.05333144,1704.1,1704.0,25.43396759]
[1693493260836,0.05333144,1704.1,1704.0,8.37168414]
[1693493261149,0.05333144,1704.1,1704.0,1.483253]
[1693493261337,0.05333144,1704.1,1704.0,7.351793]
[1693493261653,0.05333144,1704.1,1704.0,1.483253]
[1693493262818,0.05333144,1704.1,1704.0,7.351793]
[1693493264422,0.05333144,1704.1,1704.0,14.5423723]
[1693493264621,0.05333144,1704.1,1704.0,15.56231552]
[1693493264846,0.05333144,1704.1,1704.0,19.93105882]
[1693493266851,0.05333144,1704.1,1704.0,31.98059882]
[1693493267054,0.05333144,1704.1,1704.0,32.5964722]
[1693493269063,0.05333144,1704.1,1704.0,31.98059882]
[1693493269781,0.05333144,1704.1,1704.0,32.5964722]
[1693493269981,0.05333144,1704.1,1704.0,31.98059882]
[1693493270870,0.05333144,1704.1,1704.0,32.5964722]
[1693493271070,0.05333144,1704.1,1704.0,31.98059882]
[1693493271777,0.05333144,1704.1,1704.0,32.5964722]
[1693493271967,0.05333144,1704.1,1704.0,31.98059882]
[1693493273074,0.05333144,1704.1,1704.0,32.5964722]
[1693493277077,0.05333144,1704.1,1704.0,32.45453402]
[1693493277680,0.05333144,1704.1,1704.0,33.0704074]
[1693493278079,0.05333144,1704.1,1704.0,32.45453402]
[1693493278650,0.05333144,1704.1,1704.0,33.0704074]
[1693493279958,0.05333144,1704.1,1704.0,32.45453402]
[1693493283581,0.05333144,1704.1,1704.0,33.0704074]
[1693493283782,0.05333144,1704.1,1704.0,32.45453402]
[1693493285953,0.05333144,1704.1,1704.0,33.0704074]
[1693493286160,0.05333144,1704.1,1704.0,32.45453402]
[1693493288493,0.05333144,1704.1,1704.0,33.0704074]
[1693493292805,0.05333144,1704.1,1704.0,31.4345908]
[1693493293003,0.05333144,1704.1,1704.0,33.07051147]
[1693493297900,0.05333144,1704.1,1704.0,26.88951147]
[1693493303653,0.05333144,1704.1,1704.0,25.56747217]
[1693493306449,0.05333144,1704.1,1704.0,21.19872887]
[1693493306659,0.05333144,1704.1,1704.0,15.33018887]
[1693493307865,0.05333144,1704.1,1704.0,3.59310887]
[1693493308353,0.05333144,1704.1,1704.0,15.33018887]
[1693493312273,0.05333144,1704.1,1704.0,14.71413656]
[1693493314222,0.05333144,1704.1,1704.0,16.92643029]
[1693493314518,0.05333144,1704.1,1704.0,23.4110226]
[1693493314877,0.05333144,1704.1,1704.0,21.19872887]
[1693493315370,0.05333144,1704.1,1704.0,20.58267656]
[1693493324383,0.05333144,1704.1,1704.0,14.71413656]
[1693493326320,0.05333144,1704.1,1704.0,20.58267656]
[1693493329148,0.05333144,1704.1,1704.0,22.02367656]
[1693493329318,0.05333144,1704.1,1704.0,25.34958529]
[1693493329647,0.05333144,1704.1,1704.0,28.8933809]
[1693493337500,0.05333144,1704.1,1704.0,30.42318344]
[1693493340950,0.05333144,1704.1,1704.0,15.33018887]
[1693493341515,0.05333144,1704.1,1704.0,21.19872887]
[1693493342308,0.05333144,1704.1,1704.0,25.56747217]
[1693493347795,0.05333144,1704.1,1704.0,26.49155064]
[1693493349473,0.05333144,1704.1,1704.0,25.87549833]
[1693493349677,0.05333144,1704.1,1704.0,29.55628888]
[1693493352907,0.05333144,1704.1,1704.0,30.17252502]
[1693493369139,0.05333144,1704.1,1704.0,29.55628888]
[1693493372679,0.05333144,1704.1,1704.0,38.38112054]
[1693493372878,0.05333144,1704.1,1704.0,45.83047224]
[1693493373180,0.02816954,1704.1,1704.0,49.41767224]
[1693493373385,0.02816954,1704.1,1704.0,51.45740897]
[1693493373943,0.02816954,1704.1,1704.0,52.68932812]
[1693493374550,0.02816954,1704.1,1704.0,46.76977896]
[1693493376423,0.02816954,1704.1,1704.0,51.45729925]
[1693493379287,0.002,1704.3,1704.1,0.01328766]
[1693493379498,0.101,1704.6,1704.5,0.81411958]
[1693493379788,0.101,1704.6,1704.5,23.31462393]
[1693493380291,0.101,1704.6,1704.5,23.32077618]
[1693493381669,0.101,1704.6,1704.5,25.78134329]
[1693493381869,0.101,1704.6,1704.5,32.94490785]
[1693493382063,0.101,1704.6,1704.5,40.65571039]
[1693493383206,0.101,1704.6,1704.5,38.59910297]
[1693493384575,0.101,1704.6,1704.5,32.41810297]
[1693493387404,0.101,1704.6,1704.5,33.03371039]
[1693493387613,0.101,1704.6,1704.5,32.41810297]
[1693493387795,0.101,1704.6,1704.5,33.03371039]
[1693493387995,0.101,1704.6,1704.5,34.47471039]
[1693493388506,0.101,1704.6,1704.5,40.65571039]
[1693493389007,0.101,1704.6,1704.5,41.24291039]
[1693493390379,0.101,1704.6,1704.5,39.80191039]
[1693493391613,0.101,1704.6,1704.5,40.26467178]
[1693493398418,0.101,1704.6,1704.5,40.43874078]
[1693493401917,0.05335814,1704.6,1704.5,41.36215191]
[1693493402079,0.05335814,1704.6,1704.5,40.57247549]
[1693493405618,0.05335814,1704.6,1704.5,42.60025484]
[1693493406603,0.05335814,1704.6,1704.5,42.90806391]
[1693493408334,0.05335814,1704.6,1704.5,43.21586896]
[1693493413156,0.08157659,1704.8,1704.7,24.27863958]
[1693493413309,0.08157659,1704.8,1704.7,33.99267594]
[1693493413758,0.08157659,1704.8,1704.7,36.05321659]
[1693493414119,0.08157659,1704.8,1704.7,36.05935267]
[1693493414846,0.08157659,1704.8,1704.7,34.52955013]
[1693493415045,0.08157659,1704.8,1704.7,36.05935267]
[1693493416823,0.08157659,1704.8,1704.7,35.75760612]
[1693493417864,0.08157659,1704.8,1704.7,34.83656413]
[1693493424182,0.002,1705.0,1704.9,10.03356084]
[1693493424473,0.101,1705.1,1705.0,8.2092]
[1693493424769,0.101,1705.1,1705.0,34.53939789]
[1693493425165,0.101,1705.1,1705.0,34.54551289]
[1693493426133,0.101,1705.1,1705.0,37.54551289]
[1693493426857,0.101,1705.1,1705.0,38.4682216]
[1693493427039,0.101,1705.1,1705.0,43.61395152]
[1693493427576,0.101,1705.1,1705.0,43.61394871]
[1693493427932,0.101,1705.1,1705.0,42.69124281]
[1693493428132,0.101,1705.1,1705.0,43.22154456]
[1693493429539,0.101,1705.1,1705.0,44.14367311]
[1693493429848,0.101,1705.1,1705.0,42.91366752]
[1693493430045,0.101,1705.1,1705.0,34.70488817]
[1693493430240,0.101,1705.1,1705.0,36.7446249]
[1693493430435,0.101,1705.1,1705.0,34.70488817]
[1693493431779,0.101,1705.1,1705.0,34.39737307]
[1693493432139,0.101,1705.1,1705.0,35.31950162]
[1693493432556,0.101,1705.1,1705.0,41.50050162]
[1693493432741,0.101,1705.1,1705.0,40.57837307]
[1693493433460,0.101,1705.1,1705.0,41.50050162]
[1693493433856,0.101,1705.1,1705.0,40.57837307]
[1693493434174,0.101,1705.1,1705.0,42.01937307]
[1693493434877,0.101,1705.1,1705.0,42.48617471]
[1693493439788,0.101,1705.1,1705.0,41.87156126]
[1693493440696,0.101,1705.1,1705.0,42.48617471]
[1693493440973,1.9746347,1705.6,1705.0,41.87156126]
[1693493441180,1.9746347,1705.6,1705.5,0.81411958]
[1693493441385,0.9876347,1705.6,1705.5,0.81411958]
[1693493442095,0.9876347,1705.6,1705.5,0.8213782]
[1693493442493,6.8506647,1705.6,1705.5,0.8213782]
[1693493442698,12.7136947,1705.6,1705.5,0.8213782]
[1693493442896,14.58143717,1705.6,1705.5,0.8213782]
[1693493443194,14.58143717,1705.6,1705.5,1.43595979]
[1693493444715,12.7136947,1705.6,1705.5,1.43595979]
[1693493447373,6.8506647,1705.6,1705.5,1.43595979]
[1693493448409,6.8506647,1705.6,1705.5,1.33595979]
[1693493449113,6.8506647,1705.6,1705.5,1.34293923]
[1693493452983,0.9876347,1705.6,1705.5,13.06969923]
[1693493453223,0.9876347,1705.6,1705.5,13.66538301]
[1693493453421,0.5076347,1705.6,1705.5,13.66538301]
[1693493454790,0.5076347,1705.6,1705.5,13.06969923]
[1693493455186,0.5076347,1705.6,1705.5,7.20631923]
[1693493456421,0.5076347,1705.6,1705.5,20.37407923]
[1693493456820,0.5076347,1705.6,1705.5,23.30182253]
[1693493458940,0.5076347,1705.6,1705.5,21.86082253]
[1693493459140,0.5076347,1705.6,1705.5,24.77735678]
[1693493461448,0.5076347,1705.6,1705.5,26.21835678]
[1693493462207,0.5076347,1705.6,1705.5,32.39935678]
[1693493462466,0.5076347,1705.6,1705.5,37.85937838]
[1693493462615,0.5076347,1705.6,1705.5,40.00247923]
[1693493462815,0.5076347,1705.6,1705.5,40.58967923]
[1693493462816,4.7e-06,1705.6,1705.5,40.58967923]
[1693493463132,0.101,1705.7,1705.6,27.35929]
[1693493463334,0.101,1705.7,1705.6,41.92585626]
[1693493463535,0.101,1705.7,1705.6,42.67174878]
[1693493463966,0.101,1705.7,1705.6,43.59354158]
[1693493464168,0.101,1705.7,1705.6,43.60051351]
[1693493464459,0.101,1705.7,1705.6,43.59985255]
[1693493464832,0.101,1705.7,1705.6,43.59971962]
[1693493465055,0.101,1705.7,1705.6,45.02417826]
[1693493465259,0.101,1705.7,1705.6,42.98639132]
[1693493465423,0.101,1705.8,1705.7,7.4895782]
[1693493465624,0.101,1705.8,1705.7,33.30969894]
[1693493465934,0.101,1705.8,1705.7,34.83827126]
[1693493466267,0.101,1705.9,1705.8,9.7682]
[1693493466563,0.101,1705.9,1705.8,36.40343724]
[1693493466749,0.002,1706.1,1706.0,8.3433782]
[1693493467056,0.002,1706.5,1706.4,0.7213782]
[1693493467255,0.65283954,1706.9,1706.6,0.7213782]
[1693493467256,0.002,1706.7,1706.6,0.7213782]
[1693493467459,11.71889,1706.7,1706.6,0.7213782]
[1693493468224,5.95978,1706.9,1706.8,0.7213782]
[1693493469228,0.101,1706.9,1706.8,0.7213782]
[1693493470428,0.101,1706.9,1706.8,19.54205702]
[1693493471241,0.101,1706.9,1706.8,6.5802882]
[1693493471442,5.95957,1706.9,1706.8,0.7213782]
[1693493471684,12.29814,1706.9,1706.8,0.7213782]
[1693493472383,20.14954954,1706.9,1706.8,0.0068806]
[1693493472589,14.9134571,1706.9,1706.8,0.0068806]
[1693493472888,14.36161756,1706.9,1706.8,0.0068806]
[1693493473266,14.36161756,1706.9,1706.7,0.7213782]
[1693493473469,0.48,1706.8,1706.7,0.7213782]
[1693493473784,7.82307176,1706.8,1706.7,0.7213782]
[1693493474190,7.82307176,1706.8,1706.7,0.7282663]
[1693493474997,7.77307176,1706.8,1706.7,0.7282663]
[1693493475200,13.63198176,1706.8,1706.7,0.7282663]
[1693493475875,15.07298176,1706.8,1706.7,0.7282663]
[1693493477363,13.63198176,1706.8,1706.7,0.7282663]
[1693493478014,19.49089176,1706.8,1706.7,0.0068881]
[1693493478167,20.93189176,1706.8,1706.7,0.0068881]
[1693493479006,20.93189176,1706.8,1706.7,0.75875067]
[1693493479179,20.93189176,1706.8,1706.7,0.75186257]
[1693493479701,20.93189176,1706.8,1706.5,0.7213782]
[1693493479916,2.09318918,1706.7,1706.5,0.7213782]
[1693493480206,0.48,1706.6,1706.5,0.7213782]
[1693493480903,6.3396,1706.6,1706.5,0.7213782]
[1693493482166,6.3396,1706.6,1706.3,5.86442]
[1693493482167,12.1992,1706.6,1706.3,0.7253782]
[1693493482405,1.441,1706.4,1706.3,0.7253782]
[1693493482703,1.441,1706.4,1706.3,0.7213782]
[1693493482704,1.921,1706.4,1706.3,0.7213782]
[1693493483064,0.48,1706.4,1706.3,0.72802943]
[1693493485902,0.48,1706.4,1706.3,6.58865943]
[1693493486102,0.48,1706.4,1706.3,0.72802943]
[1693493486266,5.86011,1706.5,1706.3,3.65577273]
[1693493486604,5.85977,1706.6,1706.5,0.7213782]
[1693493487069,5.85977,1706.6,1706.5,0.72801443]
[1693493488100,11.7195,1706.6,1706.5,0.72801443]
[1693493488505,12.1995,1706.6,1706.5,1.48036528]
[1693493488806,14.00538,1706.6,1706.5,1.48036528]
[1693493490674,14.00538,1706.6,1706.5,0.75898708]
[1693493490880,24.30611,1706.6,1706.5,0.75898708]
[1693493496517,22.86511,1706.6,1706.5,0.75898708]
[1693493498330,0.48,1706.6,1706.5,0.75898708]
[1693493498527,5.8596,1706.6,1706.5,0.75898708]
[1693493499306,5.8593,1706.7,1706.5,0.75898708]
[1693493499508,11.71868,1706.7,1706.5,0.75898708]
[1693493499907,5.85928,1706.7,1706.5,6.61877708]
[1693493500109,5.85928,1706.7,1706.6,0.7213782]
[1693493501246,5.85928,1706.7,1706.6,0.72749113]
[1693493502624,18.05784,1706.7,1706.6,0.72749113]
[1693493502824,12.19856,1706.7,1706.6,0.72749113]
[1693493503143,12.19856,1706.7,1706.6,1.5050318]
[1693493505553,12.19856,1706.7,1706.6,2.52364836]
[1693493505950,6.33928,1706.7,1706.6,2.52364836]
[1693493506165,0.48,1706.7,1706.6,4.28145595]
[1693493506377,5.85901,1706.8,1706.6,4.28145595]
[1693493506658,5.85901,1706.8,1706.7,1.01861656]
[1693493506957,6.33901,1706.8,1706.7,1.01861656]
[1693493507284,6.33901,1706.8,1706.7,1.02448238]
[1693493507753,12.19806,1706.8,1706.7,1.80180143]
[1693493507957,12.19806,1706.8,1706.7,0.78318487]
[1693493511125,0.101,1706.9,1706.7,6.64244487]
[1693493511332,0.101,1706.9,1706.8,1.38562269]
[1693493511651,0.101,1706.9,1706.8,7.24453269]
[1693493511818,11.81814,1706.9,1706.8,0.7213782]
[1693493512019,19.11771,1706.9,1706.7,0.78318487]
[1693493512329,19.11771,1706.9,1706.8,0.00585971]
[1693493512526,17.67671,1706.9,1706.8,0.00585971]
[1693493512720,21.71905856,1706.9,1706.8,0.00585971]
[1693493513114,22.19905856,1706.9,1706.6,0.7213782]
[1693493513317,0.48,1706.8,1706.6,0.7213782]
[1693493513542,11.71852,1706.7,1706.6,0.7213782]
[1693493513741,12.19852,1706.7,1706.6,0.7213782]
[1693493514224,12.19852,1706.7,1706.6,0.72720785]
[1693493518164,12.19852,1706.7,1706.6,1.50570293]
[1693493520543,5.85926,1706.7,1706.6,1.50570293]
[1693493524599,5.85926,1706.7,1706.6,4.43344623]
[1693493524787,5.85926,1706.7,1706.6,6.30421685]
[1693493526697,5.85926,1706.7,1706.6,1.50570293]
[1693493529998,11.71852,1706.7,1706.6,1.50570293]
[1693493530313,12.19852,1706.7,1706.6,1.50570293]
[1693493531065,20.72790583,1706.7,1706.6,0.78432473]
[1693493531289,24.03518729,1706.7,1706.6,0.78432473]
[1693493531615,27.02460002,1706.7,1706.6,0.00582965]
[1693493532113,27.02460002,1706.7,1706.4,0.004]
[1693493532318,11.72002,1706.5,1706.3,0.004]
[1693493532501,11.72002,1706.5,1706.2,0.7253782]
[1693493532703,17.58003,1706.5,1706.2,7.48383102]
[1693493533081,17.58003,1706.5,1706.3,0.00562465]
[1693493533270,17.58003,1706.5,1706.3,0.78472202]
[1693493535630,11.72002,1706.5,1706.3,0.78472202]
[1693493536273,11.72002,1706.5,1706.4,0.7213782]
[1693493536474,12.20002,1706.5,1706.4,0.7213782]
[1693493537321,12.20002,1706.5,1706.4,0.72677613]
[1693493538672,19.866,1706.5,1706.4,0.72677613]
[1693493538877,19.866,1706.5,1706.4,0.00539793]
[1693493539171,19.866,1706.5,1706.3,0.77909737]
[1693493539331,18.06087,1706.4,1706.3,0.77909737]
[1693493541055,18.06087,1706.4,1706.3,0.7845028]
[1693493541251,20.047554,1706.4,1706.3,0.7845028]
[1693493546696,21.488554,1706.4,1706.3,0.7845028]
[1693493549481,18.06087,1706.4,1706.3,0.7845028]
[1693493569264,19.50187,1706.4,1706.3,0.7845028]
[1693493569687,20.73141788,1706.4,1706.3,0.7845028]
[1693493570047,23.65916118,1706.4,1706.3,0.00540543]
[1693493570248,23.65916118,1706.4,1706.1,0.004]
[1693493570485,2.36591612,1706.3,1706.1,0.004]
[1693493570683,18.06291,1706.2,1706.0,0.7253782]
[1693493570841,18.06291,1706.2,1706.0,0.7213782]
[1693493571172,18.06291,1706.2,1706.1,0.00520965]
[1693493574183,18.06291,1706.2,1706.1,0.0104193]
[1693493574474,20.24989261,1706.2,1706.1,0.0104193]
[1693493576649,21.69089261,1706.2,1706.1,0.0104193]
[1693493576985,24.69089261,1706.2,1706.1,0.0104193]
[1693493577204,25.92044049,1706.2,1706.1,0.0104193]
[1693493577959,29.56956279,1706.2,1706.1,0.0104193]
[1693493578298,29.56956279,1706.2,1706.1,0.00520965]
[1693493579014,2.2786218,1706.1,1705.9,0.004]
[1693493579197,2.2786218,1706.1,1705.7,0.004]
[1693493579198,29.7883,1706.0,1705.7,0.004]
[1693493579498,5.97883,1705.9,1705.6,0.004]
[1693493579716,23.9294,1705.8,1705.5,0.004]
[1693493580029,26.920223,1705.8,1705.5,0.004]
[1693493580320,26.920223,1705.8,1705.6,0.00504682]
[1693493584924,28.361223,1705.8,1705.6,0.00504682]
[1693493587320,11.7247,1705.8,1705.6,0.72642502]
[1693493589120,5.8621,1705.9,1705.8,0.7213782]
[1693493589121,11.72429,1705.9,1705.8,0.7213782]
[1693493589277,5.8621,1705.9,1705.8,0.7213782]
[1693493589989,11.72421,1705.9,1705.8,0.7213782]
[1693493590206,11.72421,1705.9,1705.8,0.72641]
[1693493592588,5.8621,1705.9,1705.8,0.72641]
[1693493593632,5.8621,1705.9,1705.8,1.60154614]
[1693493599672,1.1852587,1706.2,1705.8,4.92958405]
[1693493599857,6.32124061,1706.4,1706.3,0.7213782]
[1693493600061,5.86052,1706.4,1706.3,0.7213782]
[1693493600243,5.86052,1706.4,1706.3,0.72637247]
[1693493600959,5.86006,1706.5,1706.3,0.72637247]
[1693493602537,5.86006,1706.5,1706.3,1.63805472]
[1693493602744,11.71946,1706.6,1706.3,1.63805472]
[1693493602925,11.71946,1706.6,1706.3,1.64205472]
[1693493604873,11.71946,1706.6,1706.3,0.73037247]
[1693493605046,11.71946,1706.6,1706.3,0.00899427]
[1693493605047,0.48,1706.5,1706.3,0.00899427]
[1693493605222,17.58087,1706.4,1706.3,0.00499427]
[1693493605428,18.06087,1706.4,1706.3,0.00499427]
[1693493605629,20.84895336,1706.4,1706.3,0.00499427]
[1693493606242,20.84895336,1706.4,1706.1,0.7253782]
[1693493606573,0.48,1706.3,1706.1,0.7253782]
[1693493606723,5.86097,1706.2,1706.1,0.7213782]
[1693493606928,6.34097,1706.2,1706.1,0.7213782]
[1693493607166,6.34097,1706.2,1706.1,0.72600049]
[1693493608232,6.34097,1706.2,1706.1,1.58331393]
[1693493608580,5.86097,1706.2,1706.1,1.58331393]
[1693493609947,5.86097,1706.2,1706.1,7.44463393]
[1693493612875,5.86084,1706.3,1706.1,7.44463393]
[1693493613058,11.72092,1706.4,1706.1,13.30595393]
[1693493613231,11.72027,1706.5,1706.3,6.5819682]
[1693493614120,11.72027,1706.5,1706.4,0.00459977]
[1693493614290,12.20027,1706.5,1706.4,0.00459977]
[1693493615344,18.06052,1706.5,1706.3,0.7213782]
[1693493615543,0.48,1706.4,1706.3,0.7213782]
[1693493615715,19.914922,1706.4,1706.3,0.7213782]
[1693493615910,19.914922,1706.4,1706.1,7.44396164]
[1693493616318,19.914922,1706.4,1706.1,1.58269164]
[1693493618246,19.914922,1706.4,1706.2,0.00461478]
[1693493619142,19.914922,1706.4,1706.1,1.58269164]
[1693493620283,19.914922,1706.4,1706.2,0.00461478]
[1693493621079,13.7127522,1706.3,1706.2,0.00461478]
[1693493621260,14.1927522,1706.3,1706.1,1.57869164]
[1693493621417,13.7127522,1706.3,1706.1,1.57869164]
[1693493622238,13.7127522,1706.3,1706.2,0.00461478]
[1693493622446,14.1927522,1706.3,1706.2,0.00461478]
[1693493623141,14.1927522,1706.3,1706.2,0.85908397]
[1693493623651,14.1927522,1706.3,1706.1,6.5826782]
[1693493623851,14.1927522,1706.3,1706.1,0.7213782]
[1693493624264,14.1927522,1706.3,1706.2,0.00461478]
[1693493625285,14.1927522,1706.3,1706.1,0.7213782]
[1693493626187,14.1927522,1706.3,1706.2,0.00461478]
[1693493627176,14.1927522,1706.3,1706.1,0.7213782]
[1693493628190,14.1927522,1706.3,1706.2,0.00461478]
[1693493629182,14.1927522,1706.3,1706.1,0.7213782]
[1693493629799,1.41927522,1706.2,1706.1,0.7213782]
[1693493630089,7.28024522,1706.2,1706.1,0.7213782]
[1693493630285,7.28024522,1706.2,1706.1,0.72600049]
[1693493630844,5.86097,1706.2,1706.1,0.72600049]
[1693493638368,11.72194,1706.2,1706.1,1.58799484]
[1693493638573,17.58291,1706.2,1706.1,1.58799484]
[1693493638775,11.72194,1706.2,1706.1,1.58799484]
[1693493646471,7.39464424,1706.5,1706.1,1.58799484]
[1693493646472,1.22769939,1706.5,1706.1,1.58799484]
[1693493646818,1.22769939,1706.5,1706.3,0.7213782]
[1693493646819,5.86013,1706.5,1706.3,0.7213782]
[1693493647419,5.85998,1706.5,1706.4,0.00459977]
[1693493648218,5.85998,1706.5,1706.3,8.9407882]
[1693493649275,19.46066094,1706.5,1706.3,0.7213782]
[1693493649477,0.48,1706.4,1706.3,0.7213782]
[1693493649717,18.06087,1706.4,1706.1,1.58737255]
[1693493650480,19.50187,1706.4,1706.1,1.58737255]
[1693493651319,19.50187,1706.4,1706.2,0.00461478]
[1693493651526,19.532077,1706.3,1706.2,0.00461478]
[1693493652094,20.012077,1706.3,1706.2,0.00461478]
[1693493652413,20.012077,1706.3,1706.1,1.58337255]
[1693493653187,20.012077,1706.3,1706.2,0.00461478]
[1693493653593,20.012077,1706.3,1706.2,0.87721919]
[1693493659321,18.06189,1706.3,1706.2,0.87721919]
[1693493662261,19.50289,1706.3,1706.2,0.87721919]
[1693493662462,20.73058939,1706.3,1706.2,0.87721919]
[1693493663221,21.60780839,1706.3,1706.2,0.87721919]
[1693493665063,20.16680839,1706.3,1706.2,0.87721919]
[1693493665371,23.65314465,1706.3,1706.2,0.87721919]
[1693493665862,25.09414465,1706.3,1706.2,0.87721919]
[1693493669068,28.4010695,1706.3,1706.2,0.87721919]
[1693493669578,29.63168162,1706.3,1706.2,0.00461478]
[1693493669935,31.3288128,1706.3,1706.2,0.00461478]
[1693493670152,31.3288128,1706.3,1706.0,0.004]
[1693493670370,30.74845,1706.1,1705.9,0.004]
[1693493670573,17.586,1705.9,1705.8,0.004]
[1693493670785,17.586,1705.9,1705.6,0.004]